[Event "2nd Serbia Open Masters 2022"]
[Site "Novi Sad"]
[Date "2022.06.29"]
[Round "2.24"]
[White "Vardaan Nagpal"]
[Black "Pranav Vijay"]
[Result "1/2-1/2"]
[ECO "E11"]
[WhiteElo "2357"]
[BlackElo "2265"]
[Annotator "TA"]
[PlyCount "94"]
[EventDate "2022.06.28"]
[EventType "swiss"]
[EventCountry "SRB"]
[SourceTitle "playchess.com"]
[Source "ChessBase"]
[SourceQuality "1"]
[TimeControl "40/5400+30:900+30"]

{[%evp 12,94,22,10,27,27,14,19,35,35,41,34,57,52,54,33,31,34,40,41,50,29,45,49,57,44,43,42,66,63,50,42,101,29,108,0,59,52,123,52,89,0,115,0,69,60,63,43,129,68,76,42,69,62,76,68,74,50,51,50,100,67,70,54,52,61,66,66,77,62,91,91,91,91,91,8,8,3,3,3,5,3,4,0,0]} 1. d4 {[%emt 0:01:15]} Nf6 {[%emt 0:00:36]} 2. c4 {[%emt 0:00:07]} e6 {[%emt 0:00:06]} 3. g3 {[%emt 0:00:04]} Bb4+ {[%emt 0:00:11]} 4. Bd2 {[%emt 0:00:02]} a5 {[%emt 0:02:13]} 5. Bg2 {[%emt 0:00:15]} O-O {[%emt 0:00:19]} 6. Nf3 {[%emt 0:00:21]} d5 {[%emt 0:00:40]} 7. Qc2 $1 {[%emt 0:05:36][%mdl 4] outshines the older 7.0-0.} b6 {[%emt 0:03:54] E11: Bogo-Indian.} 8. cxd5 {[%emt 0:02:19]} (8. O-O {looks sharper.} dxc4 9. Ne5 Ra7 10. Rd1) 8... exd5 {[%emt 0:00:21]} 9. O-O {[%emt 0:00:11]} Bb7 {[%emt 0:03:54]} 10. Bf4 {[%emt 0:03:19] [#]} Na6 $146 {[%emt 0:08:08]} ({Predecessor:} 10... Nc6 11. Nc3 Re8 12. Nb5 Bd6 13. Nxd6 cxd6 14. Bg5 h6 15. Bxf6 Qxf6 16. Rfd1 Nb4 {0-1 (37) Demanghon,J (2197)-Marie,M (2169) Caen 2012}) 11. a3 {[%emt 0:03:37]} Bd6 {[%emt 0:02:02]} 12. Bxd6 {[%emt 0:03:53]} Qxd6 {[%emt 0:00:15]} 13. Nc3 {[%emt 0:00:47]} Rfe8 {[%emt 0:03:33]} 14. e3 {[%emt 0:03:34]} c5 {[%emt 0:02:19]} 15. Rfd1 {[%emt 0:08:19]} Rac8 $1 {[%emt 0:10:04]} 16. dxc5 {[%emt 0:08:17]} Nxc5 {[%emt 0:00:18]} 17. Nd4 {[%emt 0:00:16]} g6 {[%emt 0:02:47]} 18. Bh3 {[%emt 0:12:13]} Rcd8 {[%emt 0:02:03]} 19. Rac1 $36 {[%emt 0:09:20][%mdl 2048] White is more active.} Qe5 {[%emt 0:03:22]} 20. b4 {[%emt 0:05:22]} axb4 {[%emt 0:04:31]} 21. axb4 {[%emt 0:00:02]} Ne6 {[%emt 0:01:39]} (21... Nce4 $14) 22. Qd2 {[%emt 0:09:59]} ({White should try} 22. Bxe6 $16 {Threatens to win with Bh3.} fxe6 23. Ncb5) 22... Rc8 {[%emt 0:02:39] [#]} (22... Ng5 $11 {remains equal.} 23. Bg2 Nge4) 23. Bg2 {[%emt 0:08:55]} (23. Nxe6 $1 $16 fxe6 24. f4) 23... Rc4 {[%emt 0:05:47]} (23... Nxd4 $11 24. Qxd4 Qxd4 25. Rxd4 Ne4 26. Bxe4 Rxe4) 24. Ncb5 $14 {[%emt 0:04:30]} Nd8 {[%emt 0:08:19]} (24... Rxc1 $14 25. Rxc1 Nxd4 26. Nxd4 (26. Qxd4 Qxd4 27. Nxd4 Rc8 $14) 26... Ra8) 25. Na3 {[%emt 0:01:48]} (25. Rxc4 $16 dxc4 26. Bxb7 Nxb7 27. Qa2) 25... Rc8 {[%emt 0:02:11]} 26. Nab5 {[%emt 0:01:37]} Rc4 $1 {[%emt 0:03:49]} 27. Na3 {[%emt 0:00:02]} (27. Rxc4 $16 dxc4 28. Bxb7 Nxb7 29. Qa2) 27... Rxc1 {[%emt 0:00:53]} (27... Rc8 $1 $11) 28. Rxc1 {[%emt 0:00:08]} Ne6 {[%emt 0:04:50]} 29. Nab5 {[%emt 0:01:09]} Re7 {[%emt 0:00:26]} (29... Nxd4 $14 30. Nxd4 (30. Qxd4 Qxd4 31. Nxd4 Rc8 $14) 30... Ra8) 30. Nc6 {[%emt 0:03:33] White is more active.} ({White should play} 30. f4 $16 Ne4 31. fxe5 Nxd2 32. Nd6) 30... Bxc6 {[%emt 0:00:47]} 31. Rxc6 {[%emt 0:00:02]} Re8 {[%emt 0:03:09]} 32. Qc3 {[%emt 0:01:46]} ({Much worse is} 32. Rxb6 Qa1+ 33. Bf1 Ne4 $11) 32... d4 {[%emt 0:02:56]} 33. Nxd4 {[%emt 0:00:11]} Nxd4 {[%emt 0:00:49]} 34. Qxd4 {[%emt 0:01:28]} Qxd4 {[%emt 0:00:03]} 35. exd4 $16 {[%emt 0:00:02][%mdl 4096] Endgame KRB-KRN} Re1+ {[%emt 0:00:08]} 36. Bf1 {[%emt 0:00:01]} Nd5 {[%emt 0:00:06]} 37. Kg2 {[%emt 0:01:13] And now Bc4 would win.} Nxb4 {[%emt 0:00:51]} 38. Rxb6 {[%emt 0:00:04]} Nc2 {[%emt 0:00:04]} 39. d5 {[%emt 0:01:17] aiming for Bd3.} Rd1 {[%emt 0:00:07] Inhibits Bd3.} 40. Bc4 {[%emt 0:00:00]} Rd4 {[%emt 0:00:00]} 41. Bb3 {[%emt 0:02:56]} Ne1+ {[%emt 0:02:51] [#]} 42. Kf1 $1 {[%emt 0:00:14]} Nd3 {[%emt 0:00:12]} 43. d6 {[%emt 0:01:37]} ({Better is} 43. Rb8+ $16 Kg7 44. Rc8) 43... Nc5 $11 {[%emt 0:00:25] The position is equal.} 44. Ba2 {[%emt 0:01:32]} Ne4 {[%emt 0:00:16]} 45. Rb7 {[%emt 0:00:44]} Nxd6 {[%emt 0:01:17]} 46. Rd7 {[%emt 0:00:08][%cal Oa2f7]} Ra4 {[%emt 0:00:05]} 47. Rxd6 {[%emt 0:00:14]} Rxa2 {[%emt 0:00:04] Weighted Error Value: White=0.23 (precise) /Black=0.17 (very precise)} 1/2-1/2

[Event "2nd Serbia Open Masters 2022"]
[Site "Novi Sad"]
[Date "2022.06.29"]
[Round "2.25"]
[White "Bronstein, Or"]
[Black "Fataliyeva, Ulviyya"]
[Result "0-1"]
[ECO "D27"]
[WhiteElo "2492"]
[BlackElo "2348"]
[Annotator "TA"]
[PlyCount "176"]
[EventDate "2022.06.28"]
[EventType "swiss"]
[EventCountry "SRB"]
[SourceTitle "playchess.com"]
[Source "ChessBase"]
[SourceQuality "1"]
[TimeControl "40/5400+30:900+30"]

{[%evp 11,176,28,28,18,17,15,29,4,0,0,47,41,35,37,40,50,60,54,100,84,79,45,55,24,39,28,39,27,57,45,83,85,75,83,90,80,98,59,56,56,47,51,56,51,59,35,88,92,85,92,85,75,84,90,93,93,90,95,89,63,90,90,93,101,67,52,54,55,115,100,99,101,180,103,103,105,103,81,112,91,87,72,102,17,36,0,0,0,0,0,0,0,0,-28,-28,-28,0,0,0,0,0,-158,-154,-190,0,-728,-697,-991,-783,-775,-8,-29942,-3566,-29963,-29964,-29961,-29962,-29963,-29965,-29965,-29966,-29965,-29970,-29970,-29971,-29971,-29972,-29972,-29973,-29968,-29974,-29974,-29975,-29973,-29974,-29974,0,-29973,-29972,-29976,-29977,-29977,-29978,-29978,-29979,-29979,-29980,-29980,-29981,-29981,-29982,-29982,-29983,-29983,-29984,-29984,-29985,-29985,-29986,-29986,-29987,-29994,-29995,-29996,-29997,-29997,-29998]} 1. d4 {[%emt 0:00:02]} d5 {[%emt 0:04:28]} 2. c4 {[%emt 0:00:07]} dxc4 {[%emt 0:00:05]} 3. Nf3 {[%emt 0:03:11]} Nf6 {[%emt 0:00:04]} 4. e3 {[%emt 0:00:50]} e6 {[%emt 0:00:05]} 5. Bxc4 {[%emt 0:00:05]} c5 {[%emt 0:00:04]} 6. O-O {[%emt 0:00:07]} a6 {[%emt 0:00:03]} 7. Be2 {[%emt 0:12:17] D27: Queen's Gambit Accepted: Classical main line: 7 e4!? and 7 a4.} Nbd7 {[%emt 0:05:06]} 8. Nbd2 {[%emt 0:03:46]} Be7 {[%emt 0:11:52]} 9. b3 {[%emt 0:02:21] White has an edge.} O-O {[%emt 0:00:45]} (9... b6 {keeps more tension.} 10. Ne5 Bb7 11. Bf3 Qc7) 10. Bb2 {[%emt 0:00:45]} cxd4 {[%emt 0:03:37]} (10... b6 $11 {was preferrable.}) 11. Nxd4 $14 {[%emt 0:00:21]} Nc5 {[%emt 0:00:37]} 12. Nc4 {[%emt 0:04:31] [#]} Qc7 $146 {[%emt 0:04:26]} ({Predecessor:} 12... Nd5 13. Ne5 f6 14. Nd3 e5 15. Nxc5 Bxc5 16. Nf3 Be6 17. Bc4 b5 18. Bxd5 Qxd5 19. Qxd5 Bxd5 {0-1 (44) Fahed,A (2016)-Tayeb,S (2228) Dubai 1999}) 13. Rc1 {[%emt 0:16:01]} Rd8 {[%emt 0:12:34]} 14. Qc2 {[%emt 0:19:54]} Bd7 {[%emt 0:08:43]} (14... b5 $14 {feels stronger.}) 15. Nf3 {[%emt 0:01:47] Strongly threatening Nce5.} Bb5 {[%emt 0:27:58]} 16. Be5 {[%emt 0:09:04]} Qc6 {[%emt 0:00:41]} 17. Qb2 {[%emt 0:03:11]} Bxc4 {[%emt 0:03:12]} 18. Rxc4 {[%emt 0:00:13]} b5 {[%emt 0:00:51]} 19. Rcc1 {[%emt 0:03:52]} Qe4 {[%emt 0:00:33]} 20. Bd4 {[%emt 0:01:13]} Nd3 {[%emt 0:00:47]} 21. Bxd3 {[%emt 0:00:02]} Qxd3 {[%emt 0:00:07]} 22. Ne5 $1 {[%emt 0:02:22]} Qf5 {[%emt 0:00:07]} 23. Nc6 {[%emt 0:00:24][%csl LRd8,LRe7]} Re8 {[%emt 0:00:24]} 24. Nxe7+ {[%emt 0:02:10]} Rxe7 {[%emt 0:00:01]} 25. Rc5 {[%emt 0:00:08]} Qg6 {[%emt 0:00:30]} 26. Rfc1 {[%emt 0:04:27]} Ree8 {[%emt 0:00:07]} 27. h4 {[%emt 0:01:45] Threatens to win with Rg5.} h6 {[%emt 0:01:08] Prevents Rg5.} 28. Qe2 {[%emt 0:00:01]} Qg4 {[%emt 0:02:59]} (28... Ne4 $14) 29. Qxg4 $16 {[%emt 0:02:01]} Nxg4 {[%emt 0:00:02]} 30. Kf1 {[%emt 0:00:11]} e5 {[%emt 0:02:07]} 31. Bb2 {[%emt 0:00:01]} Rad8 {[%emt 0:00:38][%cal Og4f2]} 32. Bc3 {[%emt 0:01:50]} Rc8 {[%emt 0:06:38]} 33. Ba1 {[%emt 0:00:17]} Rxc5 {[%emt 0:02:09]} 34. Rxc5 {[%emt 0:00:02][%mdl 4096] Endgame KRB-KRN} f6 {[%emt 0:00:41]} 35. h5 {[%emt 0:02:07]} e4 {[%emt 0:02:16]} 36. Ke2 {[%emt 0:03:47]} Re6 {[%emt 0:00:56]} 37. Bd4 {[%emt 0:00:13]} Ne5 {[%emt 0:01:02]} 38. Rc8+ {[%emt 0:01:58]} Kh7 {[%emt 0:00:28]} 39. Rc7 {[%emt 0:00:39]} Kg8 {[%emt 0:00:38]} (39... Nc6 $14) 40. f3 {[%emt 0:00:00]} exf3+ {[%emt 0:00:00]} 41. gxf3 {[%emt 0:01:20]} g6 {[%emt 0:04:32]} (41... g5 $16) 42. hxg6 {[%emt 0:06:59]} ({White should try} 42. f4 $1 $18 {[%cal Rf4e5]}) 42... Nxg6 {[%emt 0:00:11]} 43. Kf2 $1 {[%emt 0:00:18]} Ne7 {[%emt 0:07:27]} 44. e4 {[%emt 0:05:16][%cal Od4f6] Against Nf5} Nc6 {[%emt 0:01:02]} 45. Be3 {[%emt 0:00:10]} h5 {[%emt 0:00:29]} 46. Bc5 {[%emt 0:02:16]} Ne5 {[%emt 0:00:54]} 47. Bd4 {[%emt 0:00:58]} (47. f4 $1 $16 {[%cal Rf4e5]} Rc6 48. Rxc6 Nxc6 49. f5) 47... h4 $11 {[%emt 0:02:19]} 48. f4 {[%emt 0:01:27]} Ng4+ {[%emt 0:00:47]} 49. Kf3 {[%emt 0:00:01]} Nh2+ {[%emt 0:00:08]} 50. Kg2 {[%emt 0:01:11] aiming for e5.} Ng4 {[%emt 0:01:12] Inhibits e5.} (50... Rxe4 51. Bxf6 Re2+ 52. Kh3 $16) 51. Rc8+ {[%emt 0:01:21]} Kf7 {[%emt 0:01:07]} 52. Kf3 {[%emt 0:00:05]} Nh2+ {[%emt 0:00:08]} 53. Ke3 {[%emt 0:00:07]} Ng4+ {[%emt 0:01:20]} (53... f5 $5 {[%cal Re6e4]} 54. e5 Ng4+ 55. Kf3 Rg6 $11) 54. Kf3 $1 {[%emt 0:00:17]} Nh2+ {[%emt 0:00:02]} 55. Ke3 {[%emt 0:00:03]} Ng4+ {[%emt 0:00:01]} 56. Kd3 $2 {[%emt 0:01:43]} (56. Kf3 $1 $11 Nh2+) 56... h3 $1 $17 {[%emt 0:01:06]} 57. Rh8 {[%emt 0:00:01] And now Rh7+ would win.} f5 $2 {[%emt 0:00:06]} (57... h2 58. Rh7+ Ke8 59. f5) (57... Rd6 $19 {White must now prevent ...h2.} 58. Rh7+ Kg6) 58. exf5 $2 {[%emt 0:00:33][%mdl 8192]} (58. Rh7+ $11 Kg6 59. exf5+ (59. Rxh3 fxe4+ 60. Ke2 Rd6 $15) 59... Kxh7 60. fxe6) 58... Rh6 $19 {[%emt 0:00:26]} 59. Rxh6 {[%emt 0:00:42]} Nxh6 {[%emt 0:00:01] KB-KN} 60. Bg1 {[%emt 0:00:08]} Ng4 $2 {[%emt 0:01:08]} (60... b4 $1 $19 61. Ke3 Ng4+ 62. Kf3 h2 63. Bxh2 Nxh2+ 64. Kg3 Nf1+ 65. Kf3 Nd2+ 66. Ke3 Nb1) 61. Ke4 $2 {[%emt 0:00:31][%mdl 8192]} (61. a3 $11) 61... b4 $1 {[%emt 0:00:19] ( -> ...a5)} ({Worse is} 61... h2 62. Bxh2 Nxh2 63. Kd5 $11) 62. Kf3 {[%emt 0:00:59]} h2 {[%emt 0:00:24]} 63. Bxh2 {[%emt 0:00:02]} Nxh2+ {[%emt 0:00:01] KN-KP} 64. Ke2 {[%emt 0:01:15]} a5 {[%emt 0:00:51]} 65. Kd3 {[%emt 0:00:17]} Kf6 {[%emt 0:00:52]} 66. Kc4 {[%emt 0:00:04]} Nf1 {[%emt 0:00:07]} 67. Kb5 {[%emt 0:00:53]} Ne3 {[%emt 0:00:09]} 68. Kxa5 {[%emt 0:00:02]} Nc2 $1 {[%emt 0:00:06]} 69. Kb5 {[%emt 0:00:07]} Kxf5 {[%emt 0:00:17]} 70. Kc4 {[%emt 0:00:09]} Kxf4 {[%emt 0:00:57] KN-KPP} 71. Kd3 {[%emt 0:00:10] [#]} Na3 $1 {[%emt 0:00:11]} 72. Kd4 {[%emt 0:00:05]} Kf3 {[%emt 0:00:43]} 73. Kd3 {[%emt 0:00:00]} Kf4 {[%emt 0:01:09]} 74. Kd4 {[%emt 0:00:14]} Kf5 {[%emt 0:00:01] Black mates.} 75. Ke3 {[%emt 0:03:05]} Ke5 {[%emt 0:00:24]} 76. Kd3 {[%emt 0:00:01]} Kd5 {[%emt 0:00:10]} 77. Ke3 {[%emt 0:00:01]} Nb5 {[%emt 0:00:40]} 78. Kd3 {[%emt 0:00:04]} Kc5 {[%emt 0:00:08]} 79. Kc2 {[%emt 0:00:44] [#]} Kd4 $1 {[%emt 0:00:10]} 80. Kb2 {[%emt 0:01:51]} Kd3 {[%emt 0:00:15]} 81. Kc1 {[%emt 0:00:22]} Kc3 {[%emt 0:02:48]} 82. Kb1 {[%emt 0:00:17]} Nd4 {[%emt 0:00:11]} 83. Kc1 {[%emt 0:00:43] [#]} Nxb3+ $1 {[%emt 0:00:26]} 84. Kb1 {[%emt 0:01:45]} (84. Kd1 Na5) 84... Nd2+ {[%emt 0:01:10]} 85. Kc1 {[%emt 0:00:02]} Nc4 {[%emt 0:00:08]} 86. Kb1 {[%emt 0:00:03]} Kd2 {[%emt 0:00:16]} 87. Ka1 {[%emt 0:00:38]} Kc2 {[%emt 0:00:10]} 88. a3 {[%emt 0:00:05]} b3 {[%emt 0:00:08] Weighted Error Value: White=0.37/Black=0.22 (precise)} 0-1

[Event "2nd Serbia Open Masters 2022"]
[Site "Novi Sad"]
[Date "2022.06.29"]
[Round "2.26"]
[White "Anuj Shrivatri"]
[Black "Janzelj, Tim"]
[Result "1-0"]
[ECO "D35"]
[WhiteElo "2356"]
[BlackElo "2470"]
[Annotator "TA"]
[PlyCount "141"]
[EventDate "2022.06.28"]
[EventType "swiss"]
[EventCountry "SRB"]
[SourceTitle "playchess.com"]
[Source "ChessBase"]
[SourceQuality "1"]
[TimeControl "40/5400+30:900+30"]

{[%evp 16,141,24,19,30,21,38,10,14,7,0,11,29,0,4,4,0,8,16,10,19,2,20,15,26,15,28,6,20,22,25,9,11,0,0,0,8,7,22,0,8,15,8,22,15,15,14,5,72,79,72,79,72,72,72,91,354,265,491,486,468,460,455,100,85,44,67,0,0,0,0,0,0,-357,0,0,0,0,17,0,47,23,58,59,50,54,201,195,212,208,437,434,1167,1250,558,801,1120,811,802,781,1231,1179,1114,1114,955,1048,876,675,797,722,6070,6070,6160,6021,6070,6070,6070,5301,5683,5065,5073,4985,4750,4618,5077,5077,4618,1339]} 1. c4 {[%emt 0:00:05]} e6 {[%emt 0:02:45]} 2. Nc3 {[%emt 0:00:09]} d5 {[%emt 0:00:11]} 3. d4 {[%emt 0:00:06]} Nf6 {[%emt 0:00:30]} 4. cxd5 {[%emt 0:00:08]} exd5 {[%emt 0:00:26]} 5. Bg5 {[%emt 0:00:08]} Be7 {[%emt 0:00:14]} 6. e3 {[%emt 0:00:05]} c6 {[%emt 0:00:28]} 7. Bd3 {[%emt 0:00:15]} Nbd7 {[%emt 0:00:16] The main line 7...Nbd7 scores better than 7...0-0.} 8. Nf3 {[%emt 0:01:46]} h6 {[%emt 0:00:18]} 9. Bf4 {[%emt 0:00:14]} Nh5 {[%emt 0:03:13] D35: Queen's Gambit Declined: Exchange Variation.} 10. Be5 {[%emt 0:04:53]} Nxe5 {[%emt 0:01:51]} 11. Nxe5 {[%emt 0:00:06]} Nf6 {[%emt 0:00:11] The position is equal.} 12. O-O {[%emt 0:00:07]} O-O {[%emt 0:04:48]} 13. Kh1 {[%emt 0:02:44] [#]} c5 $146 {[%emt 0:03:20]} ({Predecessor:} 13... Bd6 14. f4 Re8 15. Rc1 Nd7 16. Qh5 Qe7 17. Rf3 Nf6 18. Qh4 Ne4 19. Qxe7 Rxe7 20. Bxe4 dxe4 21. Nxe4 Bxe5 22. fxe5 {0-1 (126) Leviczki,T (2114)-Kaman,A (2213) Hungary 2001}) 14. dxc5 {[%emt 0:07:31]} Bxc5 {[%emt 0:02:25]} 15. Rc1 {[%emt 0:08:25]} Qe7 {[%emt 0:10:31]} 16. Nf3 {[%emt 0:00:20]} Bg4 {[%emt 0:01:12]} 17. Be2 {[%emt 0:11:46]} Rfd8 {[%emt 0:03:18]} 18. Nd4 {[%emt 0:04:02]} Bxe2 {[%emt 0:11:35]} 19. Ncxe2 {[%emt 0:02:15]} Ne4 {[%emt 0:00:18]} 20. Kg1 {[%emt 0:11:11]} Rac8 {[%emt 0:03:56]} 21. Qd3 {[%emt 0:06:36]} Qf6 {[%emt 0:04:52]} 22. Rc2 {[%emt 0:07:21]} Bb6 {[%emt 0:08:28]} 23. Rxc8 {[%emt 0:06:54]} Rxc8 {[%emt 0:00:01]} 24. Qb5 {[%emt 0:01:38]} Rd8 {[%emt 0:09:33]} 25. Nf3 {[%emt 0:02:41]} a6 {[%emt 0:02:07]} 26. Qb4 {[%emt 0:02:00]} Rc8 {[%emt 0:00:28]} 27. Qb3 {[%emt 0:01:11] Against Rc2} (27. Nf4 $5 {[%cal Rf4d5]} Rc4 28. Qb3 $14) 27... Rc5 {[%emt 0:05:44]} 28. a4 {[%emt 0:05:00] Prevents Rb5.} Rc4 {[%emt 0:09:24]} 29. a5 {[%emt 0:06:24]} Bxa5 {[%emt 0:00:16]} 30. Qxb7 {[%emt 0:00:07]} Qc6 {[%emt 0:03:53]} 31. Qa7 {[%emt 0:01:25] Hoping for Ne5.} Bc7 {[%emt 0:04:44] Inhibits Ne5.} (31... Qc8 $11 {remains equal.}) 32. Ned4 $16 {[%emt 0:01:34][%cal Be2d4,Bd4f5,Bf5e7][%mdl 32]} Qd6 {[%emt 0:00:10]} 33. Nf5 $1 {[%emt 0:01:45]} Qe6 {[%emt 0:02:35]} 34. Qa8+ {[%emt 0:01:09]} Kh7 {[%emt 0:00:03]} 35. N3d4 {[%emt 0:00:17]} Qd7 {[%emt 0:01:12][%mdl 8192]} (35... Qe5 $2 36. f4 Qf6 37. Qxd5 $18) (35... Qf6 $16) 36. Qf8 {[%emt 0:01:00][%csl Gf5][%cal Rf8g7]} (36. Qxa6 Be5 $14) 36... Be5 {[%emt 0:02:32]} (36... f6 {keeps fighting.} 37. Ne7 Qd8) 37. Ne7 $18 {[%emt 0:00:09][%csl Ge7][%cal Rf8g8] Pair of Knights!} Nf6 {[%emt 0:00:14] [#] Prevents Qg8+.} 38. Ndf5 {[%emt 0:01:25][%csl Gf5][%cal Rf8g7]} Rg4 {[%emt 0:01:28]} 39. f4 $2 {[%emt 0:03:51]} (39. h3 $18 Rg5 40. Qxf7) 39... Bd6 $16 {[%emt 0:00:00] aiming for ...Bxe7.} 40. Nxd6 {[%emt 0:00:00] Chess con chili. White is much more active.} ({Much weaker is} 40. Qxf7 $6 Bxe7 41. Nxe7 h5 $14) 40... Qxd6 {[%emt 0:00:00]} 41. h3 {[%emt 0:10:02]} (41. Qxf7 $14 Qb6 42. Nf5 (42. Nxd5 Nxd5 43. Qf5+ Rg6 $11)) 41... Rg3 $11 {[%emt 0:03:55]} 42. Qxf7 {[%emt 0:01:34]} Qd7 {[%emt 0:00:42] Prevents Nf5.} 43. Kh2 {[%emt 0:00:28]} Rxe3 {[%emt 0:00:22]} 44. Qg6+ {[%emt 0:00:05]} Kh8 {[%emt 0:00:05]} 45. Nf5 {[%emt 0:00:09]} Re6 {[%emt 0:00:55]} 46. Nd4 $40 {[%emt 0:01:40][%mdl 128] Black needs to defend precisely.} Qe8 {[%emt 0:02:03]} 47. Qf5 {[%emt 0:02:16]} Re4 {[%emt 0:00:13] [#]} (47... Re1 $11 48. Rxe1 Qxe1) 48. Rc1 $1 $14 {[%emt 0:00:31] Threatens to win with Rc8.} Qf7 {[%emt 0:03:51]} (48... Rxd4 $2 49. Rc8 Qg8 50. Rxg8+ Nxg8 51. Qf8 $18) (48... Qa4 49. Nf3) 49. Rc8+ {[%emt 0:01:41]} Re8 {[%emt 0:00:02]} 50. Rc6 {[%emt 0:00:59]} Qa7 {[%emt 0:05:03] [#] Black is on the road to losing.} (50... a5 $14) 51. Ne6 $1 $18 {[%emt 0:01:27]} Qf7 {[%emt 0:03:28]} 52. Rxa6 {[%emt 0:00:24]} Qh5 $2 {[%emt 0:00:47]} (52... Rg8 53. Qe5 Re8) 53. Nxg7 {[%emt 0:00:38] White is clearly winning.} Ng4+ {[%emt 0:00:22]} (53... Qxf5 $142 54. Nxf5 Rf8) 54. Qxg4 {[%emt 0:00:14]} Qxg4 {[%emt 0:00:02]} 55. hxg4 {[%emt 0:00:09]} Kxg7 {[%emt 0:00:01][%mdl 4096] Endgame KR-KR} 56. Rd6 {[%emt 0:00:20]} Re4 {[%emt 0:00:18]} 57. Kg3 {[%emt 0:00:39] Strongly threatening b4.} Rd4 {[%emt 0:01:14]} 58. b4 {[%emt 0:00:13]} Rd3+ {[%emt 0:00:43]} 59. Kf2 {[%emt 0:00:10]} Rd2+ {[%emt 0:00:13]} 60. Kf3 {[%emt 0:01:11]} Rd3+ {[%emt 0:00:05]} 61. Ke2 {[%emt 0:00:15]} Rd4 {[%emt 0:00:30]} 62. Ke3 {[%emt 0:00:06]} Rxb4 {[%emt 0:00:45]} 63. Rxd5 {[%emt 0:00:05]} Rb3+ {[%emt 0:00:39]} 64. Rd3 {[%emt 0:00:06]} Rb2 {[%emt 0:00:04]} 65. Kf3 {[%emt 0:00:06]} Rb4 {[%emt 0:00:05]} 66. Kg3 {[%emt 0:00:10]} Ra4 {[%emt 0:00:05]} 67. Rd5 {[%emt 0:00:41]} Kg6 {[%emt 0:00:13]} 68. g5 {[%emt 0:00:44]} Ra3+ {[%emt 0:01:28]} 69. Kh4 {[%emt 0:00:07] White threatens f5+ and mate.} Ra4 {[%emt 0:00:18]} 70. Rd6+ {[%emt 0:00:36]} Kf7 {[%emt 0:00:01]} 71. g3 {[%emt 0:01:07] Weighted Error Value: White=0.22 (precise) /Black=0.37} (71. gxh6 $142 Rxf4+ 72. g4) 1-0

[Event "2nd Serbia Open Masters 2022"]
[Site "Novi Sad"]
[Date "2022.06.29"]
[Round "2.27"]
[White "Chanda, Sandipan"]
[Black "Karacsonyi, Gellert"]
[Result "0-1"]
[ECO "D04"]
[WhiteElo "2467"]
[BlackElo "2338"]
[Annotator "TA"]
[PlyCount "70"]
[EventDate "2022.06.28"]
[EventType "swiss"]
[EventCountry "SRB"]
[SourceTitle "playchess.com"]
[Source "ChessBase"]
[SourceQuality "1"]
[TimeControl "40/5400+30:900+30"]

{[%evp 9,70,0,3,-1,14,0,0,0,0,0,0,0,0,0,0,-14,-6,-20,-17,-35,-17,-15,-23,-34,-33,-31,-34,-65,-59,-64,-60,-61,-59,-66,-59,-79,-73,-66,-45,-46,-26,-64,-54,-318,-313,-310,-321,-308,-313,-402,-350,-495,-420,-414,-381,-467,-426,-748,-536,-733,-725,-947,-713]} 1. d4 {[%emt 0:02:32]} Nf6 {[%emt 0:00:05]} 2. Nf3 {[%emt 0:00:48]} d5 {[%emt 0:00:23]} 3. e3 {[%emt 0:00:19]} c5 {[%emt 0:05:56]} 4. Nbd2 {[%emt 0:00:24]} cxd4 {[%emt 0:02:43]} 5. exd4 {[%emt 0:00:18]} Nc6 {[%emt 0:00:18]} 6. Bb5 {[%emt 0:04:53] D04: Colle System.} Bg4 {[%emt 0:03:41]} 7. h3 {[%emt 0:06:58]} Bxf3 {[%emt 0:02:34] [#]} 8. Bxc6+ $146 {[%emt 0:00:34] The position is equal.} ({Reject} 8. gxf3 Qb6 9. Qe2 Qxd4 $15) ({Predecessor:} 8. Nxf3 e6 9. O-O Rc8 10. c3 Bd6 11. Bd3 O-O 12. Bg5 h6 13. Bh4 e5 14. dxe5 Nxe5 15. Nxe5 Bxe5 {½-½ (61) Kovalenko,I (2643)-Ostrovskiy,A (2431) Chess.com INT 2021}) 8... bxc6 {[%emt 0:00:09]} 9. Nxf3 {[%emt 0:00:09]} e6 {[%emt 0:03:08]} 10. O-O {[%emt 0:01:36]} Be7 {[%emt 0:07:44]} 11. Be3 {[%emt 0:21:35][%cal Oc2c4]} O-O {[%emt 0:01:44]} 12. Qd3 {[%emt 0:02:09]} Qb6 {[%emt 0:13:31]} 13. a4 {[%emt 0:03:56]} c5 {[%emt 0:06:04]} 14. a5 {[%emt 0:03:57]} Qc7 {[%emt 0:01:11]} 15. dxc5 {[%emt 0:00:45]} Bxc5 {[%emt 0:02:09]} 16. Bxc5 {[%emt 0:03:14]} Qxc5 {[%emt 0:00:07]} 17. c3 {[%emt 0:02:28]} Ne4 {[%emt 0:04:01]} 18. Qd4 {[%emt 0:06:08]} Rab8 {[%emt 0:10:14]} 19. Ra2 {[%emt 0:12:18]} Rfc8 {[%emt 0:02:32]} 20. Rd1 {[%emt 0:05:08]} f6 {[%emt 0:06:16]} 21. Ne1 {[%emt 0:02:58]} Rb5 {[%emt 0:05:29] Black is more active.} 22. a6 {[%emt 0:04:23]} Qxd4 {[%emt 0:02:45]} 23. Rxd4 {[%emt 0:00:13]} Nc5 {[%emt 0:00:26]} 24. Nc2 {[%emt 0:01:12]} Rb6 {[%emt 0:03:12]} 25. Nb4 {[%emt 0:04:00]} Rd8 {[%emt 0:00:49]} 26. Nd3 $2 {[%emt 0:04:09][%mdl 8192] [#] This costs White the game.} ({Better is} 26. f3 $15) 26... e5 $19 {[%emt 0:06:43]} ({And not} 26... Nxa6 27. Rda4 Rdd6 28. f4 $11) ({Weaker is} 26... Rxa6 27. Rxa6 Nxa6 28. Ra4 $11) 27. Nxc5 {[%emt 0:00:10]} exd4 {[%emt 0:00:02]} 28. cxd4 {[%emt 0:00:14][%mdl 4096] Endgame KRR-KRN} Rb4 {[%emt 0:00:38]} 29. Ne6 {[%emt 0:01:21]} Rd6 {[%emt 0:02:06]} 30. Nc7 {[%emt 0:00:05]} (30. Nc5 {was forced.}) 30... Rd7 {[%emt 0:00:24]} 31. Ne6 {[%emt 0:00:06]} Re7 {[%emt 0:00:22]} 32. Nd8 {[%emt 0:01:17]} Rxd4 {[%emt 0:01:05] Black is clearly winning.} 33. b3 {[%emt 0:00:53]} (33. Ra3 $142) 33... Rd1+ {[%emt 0:01:51]} 34. Kh2 {[%emt 0:00:01]} d4 {[%emt 0:00:34][%cal Bd5d4,Bd4d3][%mdl 32] [#] Strongly threatening ...d3.} 35. b4 {[%emt 0:00:07]} d3 {[%emt 0:01:29] Weighted Error Value: White=0.55/Black=0.09 (flawless)} 0-1